bitfinex/quotes_BTCUSD_20251114
["timestamp","ask_amount","ask_price","bid_price","bid_amount"]
[1763118484266,0.002,96801.0,96800.0,0.02108114]
[1763118484446,0.001,96801.0,96800.0,0.00108114]
[1763118484644,0.09394592,96801.0,96800.0,0.00108114]
[1763118484853,0.09394592,96801.0,96800.0,0.02108114]
[1763118485057,0.09394592,96801.0,96800.0,0.00108114]
[1763118485058,0.50898165,96801.0,96800.0,0.00108114]
[1763118485257,0.43609221,96801.0,96800.0,0.00108114]
[1763118485416,0.47851095,96801.0,96800.0,0.00108114]
[1763118485842,0.47951095,96801.0,96800.0,0.00108114]
[1763118486058,0.47851095,96801.0,96800.0,0.00108114]
[1763118486465,0.47951095,96801.0,96800.0,0.00108114]
[1763118486671,0.58318033,96801.0,96800.0,0.00108114]
[1763118487091,0.66228487,96801.0,96800.0,0.00108114]
[1763118487293,0.66228487,96801.0,96790.0,0.0004]
[1763118487294,0.25004952,96791.0,96790.0,0.0004]
[1763118487505,0.25004952,96791.0,96790.0,0.00053684]
[1763118487506,0.59219581,96791.0,96790.0,0.00053684]
[1763118487723,0.69274079,96791.0,96790.0,0.00053684]
[1763118488234,0.69274079,96791.0,96790.0,1e-08]
[1763118488443,0.71479301,96791.0,96790.0,1e-08]
[1763118488588,0.71479301,96791.0,96780.0,0.0004]
[1763118488589,0.57307087,96781.0,96780.0,1e-08]
[1763118488856,0.69223651,96781.0,96780.0,1e-08]
[1763118489067,0.69223651,96781.0,96770.0,1e-08]
[1763118489068,0.57309222,96771.0,96770.0,1e-08]
[1763118489301,0.57309222,96771.0,96725.0,0.01214]
[1763118489303,0.2067675,96727.0,96725.0,0.01214]
[1763118489510,0.2067675,96727.0,96726.0,0.12408486]
[1763118489728,0.69711312,96750.0,96735.0,0.02874]
[1763118489729,0.20674619,96737.0,96735.0,0.02874]
[1763118489946,0.20673978,96740.0,96735.0,0.02874]
[1763118490162,0.52973559,96742.0,96735.0,0.02874]
[1763118490163,0.20674826,96736.0,96735.0,0.02874]
[1763118490374,0.20674826,96736.0,96735.0,0.01214]
[1763118490790,0.52973559,96742.0,96735.0,0.01214]
[1763118491003,0.52973559,96742.0,96740.0,0.02]
[1763118491200,0.323,96748.0,96744.0,0.0166]
[1763118491483,0.52972785,96746.0,96745.0,0.0166]
[1763118491978,0.20674612,96737.0,96735.0,0.01214]
[1763118492199,0.09294592,96736.0,96735.0,0.01214]
[1763118492429,0.20672785,96746.0,96735.0,0.01214]
[1763118492430,0.323,96747.0,96744.0,0.0166]
[1763118492657,0.323,96745.0,96744.0,0.0166]
[1763118493087,0.01033591,96750.0,96740.0,0.02]
[1763118493088,0.20673515,96743.0,96740.0,0.02]
[1763118493307,0.52973544,96742.0,96740.0,0.02]
[1763118493526,0.323,96742.0,96727.0,0.0227]
[1763118493747,0.52973757,96741.0,96740.0,0.02]
[1763118496131,0.52973757,96741.0,96735.0,0.01214]
[1763118496132,0.323,96740.0,96735.0,0.01214]
[1763118496340,0.20674826,96736.0,96735.0,0.01214]
[1763118496778,0.20674826,96736.0,96735.0,0.03484]
[1763118496990,0.323,96744.0,96735.0,0.03484]
[1763118496991,0.01033484,96760.0,96744.0,0.0166]
[1763118497201,0.5297162,96751.0,96750.0,0.02]
[1763118497848,0.20674826,96736.0,96735.0,0.01214]
[1763118498059,0.20674826,96736.0,96722.0,0.2067767]
[1763118498060,0.20676447,96729.0,96722.0,0.2067767]
[1763118498256,0.20676447,96729.0,96722.0,0.0227]
[1763118498257,0.2067663,96728.0,96722.0,0.0227]
[1763118499028,0.2067663,96728.0,96726.0,8.486e-05]
[1763118500922,0.323,96727.0,96726.0,8.486e-05]
[1763118501997,0.36641874,96727.0,96726.0,8.486e-05]
[1763118502403,0.3864801,96727.0,96726.0,8.486e-05]
[1763118502613,0.3874801,96727.0,96726.0,8.486e-05]
[1763118503021,0.3864801,96727.0,96726.0,0.00207168]
[1763118503223,0.36841874,96727.0,96726.0,0.00207168]
[1763118503387,0.36741874,96727.0,96726.0,0.00207168]
[1763118503804,0.36841874,96727.0,96726.0,0.00207168]
[1763118504009,0.324,96727.0,96726.0,0.00207168]
[1763118504210,0.001,96727.0,96726.0,0.00207168]
[1763118504530,0.002,96727.0,96726.0,0.00207168]
[1763118504913,0.001,96727.0,96726.0,0.00207168]
[1763118505114,0.002,96727.0,96726.0,0.00207168]
[1763118505314,0.002,96727.0,96726.0,0.0950176]
[1763118505315,0.001,96727.0,96726.0,0.0950176]
[1763118505555,0.20668103,96768.0,96735.0,0.02874]
[1763118505815,0.01033271,96780.0,96735.0,0.02874]
[1763118505816,0.20671834,96750.0,96735.0,0.02874]
[1763118506019,0.29966853,96749.0,96736.0,0.0227]
[1763118506214,0.01033484,96760.0,96736.0,0.0227]
[1763118506215,0.09294592,96748.0,96736.0,0.0227]
[1763118506459,0.20674612,96737.0,96736.0,0.0227]
[1763118506902,0.20674612,96737.0,96735.0,0.01214]
[1763118507307,0.20674612,96737.0,96736.0,0.001]
[1763118508086,0.20674515,96738.0,96736.0,0.001]
[1763118508668,0.20674826,96736.0,96735.0,0.03484]
[1763118508841,0.41334723,96771.0,96735.0,0.03484]
[1763118508842,0.01033271,96780.0,96745.0,0.0166]
[1763118508986,0.20669475,96762.0,96760.0,0.02]
[1763118509191,0.20669484,96761.0,96760.0,0.02]
[1763118509427,0.20669197,96763.0,96761.0,0.01214]
[1763118509636,0.2066781,96769.0,96761.0,0.03484]
[1763118509956,0.20667353,96771.0,96769.0,0.02874]
[1763118510109,0.20667353,96771.0,96770.0,0.0366]
[1763118510493,0.29961626,96773.0,96770.0,0.0366]
[1763118510740,0.20667348,96771.0,96770.0,0.0166]
[1763118511074,0.20667348,96771.0,96770.0,0.0366]
[1763118511366,0.20667348,96771.0,96770.0,0.0374051]
[1763118511517,0.20767348,96771.0,96770.0,0.0208051]
[1763118511917,0.20867348,96771.0,96770.0,0.0008051]
[1763118512119,0.20867348,96771.0,96770.0,0.0208051]
[1763118513185,0.20867348,96771.0,96770.0,0.0008051]
[1763118513384,0.20867348,96771.0,96770.0,0.0208051]
[1763118513697,0.20867348,96771.0,96770.0,0.0008051]
[1763118513841,0.20867348,96771.0,96770.0,0.0208051]
[1763118514195,0.20867348,96771.0,96770.0,0.0008051]
[1763118514196,0.60836559,96771.0,96770.0,0.0008051]
[1763118514443,0.62261407,96771.0,96770.0,0.0008051]
[1763118515050,0.5893407,96771.0,96770.0,0.0008051]
[1763118515729,0.5893407,96771.0,96725.0,0.01237]
[1763118515730,0.20676963,96726.0,96725.0,0.01237]
[1763118515961,0.20676963,96726.0,96725.0,0.01245486]
[1763118516497,0.20676963,96726.0,96725.0,8.486e-05]
[1763118517437,0.52976565,96728.0,96725.0,8.486e-05]
[1763118517583,0.323,96728.0,96725.0,8.486e-05]
[1763118517787,0.323,96728.0,96726.0,0.02477]
[1763118517986,0.04341874,96747.0,96740.0,0.02]
[1763118518319,0.01033591,96750.0,96740.0,0.02]
[1763118518320,0.52973757,96741.0,96740.0,0.02]
[1763118518532,0.54890232,96741.0,96740.0,0.02]
[1763118519846,0.54890232,96741.0,96725.0,8.486e-05]
[1763118519847,0.20676963,96726.0,96725.0,8.486e-05]
[1763118520509,0.20675734,96732.0,96730.0,0.02]
[1763118520703,0.20676963,96726.0,96725.0,8.486e-05]
[1763118521466,0.20676853,96727.0,96725.0,0.00229326]
[1763118521827,0.20676853,96727.0,96725.0,0.00108486]
[1763118522012,0.09294592,96726.0,96725.0,0.00108486]
[1763118522221,0.20676853,96727.0,96725.0,0.00108486]
[1763118522440,0.57315631,96741.0,96740.0,0.02]
[1763118522639,0.57315631,96741.0,96739.0,0.0161]
[1763118522640,0.323,96740.0,96739.0,0.0161]
[1763118522847,0.01033484,96760.0,96740.0,0.02847]
[1763118523004,0.20672261,96748.0,96747.0,0.0161]
[1763118524156,0.20673544,96742.0,96740.0,0.01237]
[1763118524357,0.01033484,96760.0,96741.0,0.02477]
[1763118524563,0.06258766,96759.0,96758.0,0.01237]
[1763118524737,0.04341874,96759.0,96758.0,0.01237]
[1763118524940,0.25011785,96759.0,96758.0,0.01237]
[1763118525150,0.25011785,96759.0,96741.0,0.02477]
[1763118525151,0.20672982,96745.0,96741.0,0.02477]
[1763118525351,0.04341874,96759.0,96740.0,0.01237]
[1763118525352,0.20673314,96744.0,96740.0,0.01237]
[1763118525516,0.2067369,96742.0,96740.0,0.01237]
[1763118525721,0.2067369,96742.0,96740.0,0.01245486]
[1763118525915,0.20673614,96742.0,96741.0,0.02477]
[1763118526924,0.20673568,96744.0,96741.0,0.02477]
[1763118527133,0.20672742,96746.0,96741.0,0.23150694]
[1763118527350,0.20672375,96748.0,96741.0,0.02477]
[1763118527514,0.20672192,96749.0,96743.0,0.20673292]
[1763118527731,0.36641874,96759.0,96745.0,0.20672783]
[1763118527936,0.2067162,96751.0,96750.0,0.0361]
[1763118528196,0.2067162,96751.0,96750.0,0.0161]
[1763118529304,0.2067162,96751.0,96741.0,0.02477]
[1763118529433,0.2067162,96751.0,96740.0,0.01245486]
[1763118529434,0.52973757,96741.0,96740.0,0.02008486]
[1763118529634,0.52973757,96741.0,96740.0,8.486e-05]
[1763118529835,0.323,96741.0,96740.0,8.486e-05]
[1763118530035,0.52973757,96741.0,96740.0,8.486e-05]
[1763118530384,0.52973757,96741.0,96740.0,0.02008486]
[1763118531148,0.52973757,96741.0,96740.0,8.486e-05]
[1763118531351,0.52973757,96741.0,96740.0,0.02008486]
[1763118531537,0.53073757,96741.0,96740.0,0.02008486]
[1763118531983,0.52973757,96741.0,96740.0,8.486e-05]
[1763118532697,0.323,96741.0,96740.0,8.486e-05]
[1763118533041,0.52973757,96741.0,96740.0,0.00089033]
[1763118533247,0.3844469,96770.0,96740.0,0.00089033]
[1763118533248,0.01033378,96770.0,96740.0,0.00089033]
[1763118533476,0.20668845,96764.0,96763.0,0.02847]
[1763118533718,0.52968845,96764.0,96763.0,0.02847]
[1763118534194,0.2066846,96766.0,96763.0,0.02847]
[1763118534451,0.45117822,96769.0,96764.0,0.02477]
[1763118534693,0.2445,96769.0,96764.0,0.23145711]
[1763118534925,0.20667348,96771.0,96766.0,0.20668378]
[1763118535158,0.20667775,96770.0,96766.0,0.20668378]
[1763118535386,0.20668162,96768.0,96765.0,0.23145472]
[1763118535598,0.20668323,96767.0,96765.0,0.02477]
[1763118535808,0.001,96766.0,96763.0,0.2190598]
[1763118536018,0.001,96766.0,96763.0,0.01237]
[1763118536267,0.001,96766.0,96763.0,0.21905884]
[1763118536441,0.001,96766.0,96764.0,0.23145809]
[1763118536642,0.001,96766.0,96764.0,0.02477]
[1763118537022,0.01033033,96805.0,96763.0,0.21905884]
[1763118537023,0.323,96774.0,96772.0,0.20667077]
[1763118537205,0.20667374,96771.0,96765.0,0.02477]
[1763118537410,0.001,96768.0,96767.0,0.20668203]
[1763118537622,0.001,96768.0,96764.0,0.20668687]
[1763118537800,0.001,96767.0,96763.0,0.01237]
[1763118538002,0.09294592,96776.0,96763.0,0.01237]
[1763118538211,0.52967348,96771.0,96770.0,0.02]
[1763118538417,0.52968843,96764.0,96763.0,0.01237]
[1763118539033,0.52968843,96764.0,96763.0,0.001]
[1763118539236,0.5296927,96762.0,96761.0,0.00024159]
[1763118540896,0.323,96762.0,96761.0,0.00024159]
[1763118541086,0.01033271,96780.0,96770.0,0.035]
[1763118541293,0.20667187,96772.0,96770.0,0.015]
[1763118542158,0.01033271,96780.0,96761.0,0.00024159]
[1763118542370,0.01033271,96780.0,96779.0,0.015]
[1763118542371,0.323,96780.0,96779.0,0.015]
[1763118543082,0.20667135,96772.0,96771.0,0.02451]
[1763118543720,0.323,96780.0,96771.0,0.02451]
[1763118543945,0.323,96787.0,96780.0,0.015]
[1763118544161,0.40172998,96810.0,96771.0,0.02451]
[1763118544162,0.20666939,96773.0,96771.0,0.02451]
[1763118544365,0.20666939,96773.0,96772.0,0.0117]
[1763118544954,0.20666784,96774.0,96772.0,0.0117]
[1763118545165,0.20666784,96774.0,96773.0,0.02451]
[1763118546616,0.30994839,96791.0,96773.0,0.02451]
[1763118546617,0.323,96783.0,96782.0,0.015]
[1763118546848,0.01033164,96790.0,96773.0,0.02451]
[1763118546849,0.20666624,96775.0,96773.0,0.02451]
[1763118547074,0.20666624,96775.0,96772.0,0.0117]
[1763118547075,0.20666921,96773.0,96772.0,0.0117]
[1763118547273,0.54849629,96800.0,96772.0,0.0117]
[1763118547274,0.323,96792.0,96773.0,0.02451]
[1763118547485,0.20676656,96792.0,96791.0,0.015]
[1763118547713,0.20676656,96792.0,96773.0,0.11745592]
[1763118547714,0.00013656,96792.0,96773.0,0.02451]
[1763118547905,0.00013656,96792.0,96790.0,0.02]
[1763118547906,0.20663078,96791.0,96790.0,0.02]
[1763118548350,0.20676734,96792.0,96772.0,0.0117]
[1763118548351,0.20664424,96785.0,96781.0,0.23099033]
[1763118548554,0.20664795,96783.0,96781.0,0.02434]
[1763118548776,0.20664826,96783.0,96779.0,0.20665605]
[1763118548996,0.20664826,96783.0,96782.0,0.02434]
[1763118549416,0.001,96791.0,96772.0,0.0117]
[1763118549417,0.001,96791.0,96772.0,0.03604]
[1763118549644,0.001,96791.0,96760.0,0.02434]
[1763118549645,0.09294592,96774.0,96760.0,0.02434]
[1763118549858,0.09294592,96789.0,96760.0,0.02]
[1763118549859,0.2066927,96762.0,96760.0,0.02]
[1763118550066,0.2066927,96762.0,96753.0,0.02434]
[1763118550501,0.2066927,96762.0,96753.0,0.23105019]
[1763118550708,0.20667782,96769.0,96759.0,0.2066976]
[1763118550920,0.20669057,96763.0,96762.0,0.02434]
[1763118551992,0.20669057,96763.0,96746.0,0.20672606]
[1763118552272,0.20669057,96763.0,96750.0,0.02434]
[1763118552473,0.20669057,96763.0,96761.0,0.02458159]
[1763118552474,0.20669242,96763.0,96761.0,0.02458159]
[1763118553460,0.20669078,96764.0,96762.0,0.001]
[1763118553674,0.56780878,96764.0,96762.0,0.001]
[1763118553894,0.56780878,96764.0,96761.0,0.00024159]
[1763118553895,0.5296927,96762.0,96761.0,0.00024159]
[1763118555452,0.5306927,96762.0,96761.0,0.00024159]
[1763118556608,0.5316927,96762.0,96761.0,0.00024159]
[1763118556751,0.63436208,96762.0,96761.0,0.00024159]
[1763118556969,0.5296927,96762.0,96761.0,0.00024159]
[1763118557166,0.5306927,96762.0,96761.0,0.00024159]
[1763118557390,0.5296927,96762.0,96761.0,0.00024159]
[1763118559169,0.52900803,96762.0,96761.0,0.00024159]
[1763118559739,0.57242677,96762.0,96761.0,0.00024159]
[1763118560156,0.57442677,96762.0,96761.0,0.00024159]
[1763118560352,0.53100803,96762.0,96761.0,0.00024159]
[1763118560755,0.53000803,96762.0,96761.0,0.00024159]
[1763118560931,0.52900803,96762.0,96761.0,0.00024159]
[1763118561178,0.53000803,96762.0,96761.0,0.00024159]
[1763118561762,0.001,96762.0,96761.0,0.02458159]
[1763118562376,0.20669139,96763.0,96761.0,0.02458159]
[1763118562707,0.001,96762.0,96761.0,0.02458159]
[1763118563165,0.52968328,96767.0,96761.0,0.02458159]
[1763118563365,0.52968328,96767.0,96761.0,0.00024159]
[1763118563366,0.20669057,96763.0,96761.0,0.00024159]
[1763118563820,0.323,96762.0,96761.0,0.00024159]
[1763118566567,0.324,96762.0,96761.0,0.00024159]
[1763118568708,0.323,96762.0,96761.0,0.00024159]
[1763118569776,0.55008052,96762.0,96761.0,0.00024159]
[1763118570580,0.55208052,96762.0,96761.0,0.00024159]
[1763118571336,0.55108052,96762.0,96761.0,0.00024159]
[1763118571746,0.55008052,96762.0,96761.0,0.00024159]
[1763118573780,0.2445,96762.0,96761.0,0.00024159]
[1763118574314,0.66044592,96762.0,96761.0,0.00024159]
[1763118575085,0.66144592,96762.0,96761.0,0.00024159]
[1763118575473,0.66044592,96762.0,96761.0,0.00024159]
[1763118575868,0.66244592,96762.0,96761.0,0.00024159]
[1763118576709,0.44053496,96762.0,96761.0,0.00024159]
[1763118577238,0.4626487,96762.0,96761.0,0.00024159]
[1763118579321,0.48186858,96762.0,96761.0,0.00024159]
[1763118579524,0.48086858,96762.0,96761.0,0.00024159]
[1763118579680,0.4606487,96762.0,96761.0,0.00024159]
[1763118580482,0.4606487,96762.0,96761.0,0.00028159]
[1763118580687,0.09294592,96762.0,96761.0,0.00028159]
[1763118581328,0.41594592,96762.0,96761.0,0.00032159]
[1763118581519,0.09294592,96762.0,96761.0,0.00032159]
[1763118581723,0.09294592,96762.0,96761.0,0.00036159]
[1763118582038,0.09294592,96762.0,96761.0,0.00040159]
[1763118582260,0.41594592,96762.0,96761.0,0.00040159]
[1763118582516,0.41594592,96762.0,96761.0,0.00044159]
[1763118582708,0.41694592,96762.0,96761.0,0.00048159]
[1763118582936,0.41694592,96762.0,96761.0,0.00052159]
[1763118583148,0.41694592,96762.0,96761.0,0.00056159]
[1763118583149,0.41794592,96762.0,96761.0,0.00056159]
[1763118585633,0.62463862,96762.0,96761.0,0.00056159]
[1763118591146,0.5316927,96762.0,96761.0,0.00056159]
[1763118591450,0.5316927,96762.0,96761.0,0.20725643]
[1763118591451,0.002,96762.0,96761.0,0.20725643]
[1763118591783,0.09294592,96789.0,96770.0,0.02811]
[1763118591983,0.62258097,96789.0,96788.0,0.01189]
[1763118592212,0.29958097,96789.0,96788.0,0.01189]
[1763118592802,0.62258097,96789.0,96788.0,0.01189]
[1763118594036,0.2066564,96779.0,96778.0,0.02399]
[1763118594261,0.2995831,96789.0,96770.0,0.01189]
[1763118594434,0.20667002,96773.0,96770.0,0.01189]
[1763118594639,0.20666708,96774.0,96771.0,0.20667277]
[1763118594977,0.20666179,96777.0,96774.0,0.20666661]
[1763118595122,0.323,96781.0,96775.0,0.20666436]
[1763118595323,0.20665837,96779.0,96775.0,0.20666436]
[1763118595573,0.20665837,96779.0,96776.0,0.02399]
[1763118595940,0.20665837,96779.0,96776.0,0.23065234]
[1763118596145,0.20664816,96783.0,96777.0,0.20666036]
[1763118596371,0.323,96780.0,96778.0,0.20665809]
[1763118596541,0.323,96780.0,96778.0,0.23064809]
[1763118596741,0.323,96780.0,96779.0,0.02399]
[1763118597030,0.323,96780.0,96778.0,0.01189]
[1763118597031,0.2066564,96779.0,96778.0,0.01189]
[1763118597880,0.5296564,96780.0,96778.0,0.01189]
[1763118598085,0.323,96781.0,96778.0,0.21854738]
[1763118598284,0.323,96781.0,96780.0,0.02]
[1763118598482,0.323,96781.0,96779.0,0.02399]
[1763118598726,0.323,96781.0,96779.0,0.23064477]
[1763118598934,0.323,96781.0,96779.0,0.02399]
[1763118599135,0.323,96782.0,96779.0,0.20665629]
[1763118599357,0.5296507,96782.0,96778.0,0.21854831]
[1763118599572,0.5296507,96782.0,96779.0,0.20665575]
[1763118599745,0.323,96782.0,96780.0,0.20665362]
[1763118599947,0.323,96782.0,96781.0,0.20665213]
[1763118600147,0.52963843,96788.0,96784.0,0.20664437]
[1763118600351,0.52964786,96783.0,96782.0,0.02348]
[1763118600520,0.323,96783.0,96779.0,0.2066564]
[1763118600723,0.323,96783.0,96782.0,0.20664999]
[1763118601313,0.2066564,96779.0,96778.0,0.01189]
[1763118601832,0.2066564,96779.0,96778.0,0.03537]
[1763118602033,0.2066564,96779.0,96778.0,0.01189]
[1763118603539,0.323,96783.0,96779.0,0.02348]
[1763118603745,0.323,96788.0,96787.0,0.01561]
[1763118603945,0.01033057,96800.0,96779.0,0.02348]
[1763118603946,0.20662116,96796.0,96779.0,0.02348]
[1763118604150,0.00013656,96796.0,96779.0,0.02348]
[1763118604395,0.323,96793.0,96789.0,0.20663505]
[1763118604637,0.323,96793.0,96779.0,0.02348]
[1763118604868,0.323,96793.0,96792.0,0.02775]
[1763118605091,0.323,96793.0,96792.0,0.01214]
[1763118605305,0.323,96794.0,96792.0,0.01214]
[1763118605497,0.20662651,96793.0,96792.0,0.01214]
[1763118605975,0.323,96794.0,96792.0,0.01214]
[1763118606145,0.323,96794.0,96793.0,0.02348]
[1763118606405,0.52962437,96794.0,96793.0,0.02348]
[1763118606803,0.00013656,96796.0,96793.0,0.02348]
[1763118607139,0.52962437,96794.0,96793.0,0.02348]
[1763118607343,0.323,96794.0,96793.0,0.23010651]
[1763118607912,0.52962651,96793.0,96792.0,0.01214]
[1763118608367,0.52962651,96793.0,96770.0,0.01189]
[1763118608368,0.2066564,96779.0,96770.0,0.01189]
[1763118608910,0.2066564,96779.0,96772.0,0.02336]
[1763118609551,0.14640403,96779.0,96778.0,0.02727]
[1763118610431,0.14640403,96779.0,96778.0,0.01189]
[1763118610639,0.52967348,96771.0,96770.0,0.03189]
[1763118610794,0.6226194,96771.0,96770.0,0.03189]
[1763118610997,0.6226194,96771.0,96770.0,0.01189]
[1763118611209,0.6226194,96771.0,96770.0,0.03189]
[1763118611408,0.6226194,96771.0,96770.0,0.01189]
[1763118611635,0.6226194,96771.0,96770.0,0.03189]
[1763118613847,0.323,96771.0,96770.0,0.01189]
[1763118615313,0.323,96771.0,96770.0,0.01289]
[1763118615516,0.323,96771.0,96770.0,0.01389]
[1763118618197,0.323,96771.0,96770.0,0.22056562]
[1763118618407,0.50112656,96800.0,96770.0,0.22056562]
[1763118618408,0.20663078,96791.0,96790.0,0.02]
[1763118618611,0.20664849,96783.0,96779.0,0.20665433]
[1763118618884,0.20663383,96790.0,96780.0,0.02336]
[1763118619029,0.20665213,96781.0,96780.0,0.03535]
[1763118619234,0.52965213,96781.0,96780.0,0.03535]
[1763118619642,0.52965213,96781.0,96780.0,0.01199]
[1763118619837,0.52965213,96781.0,96780.0,0.03535]
[1763118620421,0.52965213,96781.0,96780.0,0.01199]
[1763118620825,0.52965213,96781.0,96780.0,0.03635]
[1763118621215,0.323,96781.0,96780.0,0.01399]
[1763118621642,0.52965213,96781.0,96780.0,0.01399]
[1763118621821,0.323,96781.0,96780.0,0.01399]
[1763118622407,0.52965213,96781.0,96780.0,0.01399]
[1763118622608,0.323,96781.0,96780.0,0.01399]
[1763118623008,0.52965213,96781.0,96780.0,0.01399]
[1763118623398,0.323,96781.0,96780.0,0.22064426]
[1763118623829,0.323,96781.0,96780.0,0.01399]
[1763118624030,0.323,96781.0,96780.0,0.22064426]
[1763118624640,0.01033057,96800.0,96786.0,0.20664048]
[1763118624867,0.323,96789.0,96786.0,0.20664048]
[1763118625035,0.323,96789.0,96787.0,0.22999909]
[1763118625487,0.323,96789.0,96788.0,0.02336]
[1763118625690,0.52963505,96789.0,96788.0,0.03874]
[1763118625893,0.323,96789.0,96788.0,0.02336]
[1763118626052,0.20663434,96790.0,96784.0,0.20664502]
[1763118626053,0.323,96786.0,96784.0,0.20664502]
[1763118626261,0.323,96786.0,96785.0,0.20664359]
[1763118627094,0.323,96790.0,96786.0,0.20663736]
[1763118627295,0.323,96790.0,96787.0,0.20663932]
[1763118627496,0.323,96791.0,96790.0,0.22663291]
[1763118627812,0.52963505,96789.0,96788.0,0.02336]
[1763118628067,0.323,96789.0,96788.0,0.02336]
[1763118628431,0.52963505,96789.0,96788.0,0.02336]
[1763118628855,0.323,96789.0,96788.0,0.02336]
[1763118629265,0.52963505,96789.0,96788.0,0.02336]
[1763118629474,0.323,96789.0,96788.0,0.22999718]
[1763118629683,0.323,96789.0,96788.0,0.02336]
[1763118629890,0.323,96789.0,96780.0,0.01199]
[1763118630095,0.52963505,96789.0,96788.0,0.01538]
[1763118630306,0.323,96789.0,96788.0,0.22201718]
[1763118630513,0.323,96789.0,96780.0,0.01199]
[1763118630731,0.52963505,96789.0,96788.0,0.01626]
[1763118631154,0.20664344,96786.0,96782.0,0.20664881]
[1763118631356,0.20664002,96787.0,96783.0,0.20664692]
[1763118631761,0.323,96789.0,96784.0,0.02286]
[1763118631969,0.323,96789.0,96787.0,0.20663722]
[1763118632178,0.323,96789.0,96788.0,0.02286]
[1763118632393,0.52963505,96789.0,96788.0,0.02286]
[1763118635491,0.52963505,96789.0,96780.0,0.01199]
[1763118635492,0.20665213,96781.0,96780.0,0.01199]
[1763118636484,0.20665213,96781.0,96780.0,0.03485]
[1763118636901,0.20665213,96781.0,96780.0,0.03585]
[1763118637895,0.20665213,96781.0,96780.0,0.01299]
[1763118638548,0.20665213,96781.0,96780.0,0.03585]
[1763118639370,0.20665213,96781.0,96780.0,0.01299]
[1763118639789,0.20665213,96781.0,96780.0,0.021]
[1763118639790,0.62259805,96781.0,96780.0,0.021]
[1763118640228,0.62259805,96781.0,96780.0,0.03130617]
[1763118640606,0.62259805,96781.0,96780.0,0.03030617]
[1763118641224,0.62259805,96781.0,96780.0,0.01030617]
[1763118641644,0.52967775,96769.0,96768.0,0.01030617]
[1763118643440,0.52967775,96769.0,96768.0,0.02196617]
[1763118644434,0.52967775,96769.0,96768.0,0.01030617]
[1763118646666,0.52967775,96769.0,96761.0,0.00056159]
[1763118646667,0.323,96768.0,96761.0,0.00056159]
[1763118646892,0.62263862,96762.0,96761.0,0.00056159]
[1763118649278,0.62363862,96762.0,96761.0,0.00056159]
[1763118649434,0.62463862,96762.0,96761.0,0.00056159]
[1763118653557,0.728308,96762.0,96761.0,0.00056159]
[1763118656281,0.72804963,96762.0,96761.0,0.00056159]
[1763118657148,0.62438025,96762.0,96761.0,0.00056159]
[1763118661116,0.62238025,96762.0,96761.0,0.00056159]
[1763118661327,0.09294592,96763.0,96761.0,0.00056159]
[1763118661536,0.001,96762.0,96761.0,0.01086776]
[1763118662148,0.323,96762.0,96761.0,0.01086776]
[1763118662557,0.001,96763.0,96762.0,0.2066927]
[1763118662773,0.001,96763.0,96761.0,0.01086776]
[1763118663350,0.20769195,96763.0,96761.0,0.01086776]
[1763118663756,0.20669195,96763.0,96761.0,0.01086776]
[1763118664164,0.20669195,96763.0,96761.0,0.01186776]
[1763118664342,0.20669072,96765.0,96762.0,0.02257]
[1763118664887,0.20669057,96763.0,96762.0,0.02257]
[1763118665089,0.323,96766.0,96762.0,0.02257]
[1763118665302,0.20668891,96764.0,96762.0,0.02257]
[1763118665971,0.323,96766.0,96764.0,0.20668791]
[1763118666179,0.09294592,96781.0,96763.0,0.20669057]
[1763118666180,0.323,96770.0,96763.0,0.20669057]
[1763118666382,0.323,96779.0,96764.0,0.02257]
[1763118666593,0.323,96789.0,96778.0,0.01571]
[1763118666749,0.323,96780.0,96779.0,0.01571]
[1763118667103,0.323,96780.0,96779.0,0.03418]
[1763118667316,7.996e-05,96789.0,96779.0,0.24083426]
[1763118667509,7.996e-05,96789.0,96788.0,0.01571]
[1763118667709,7.996e-05,96789.0,96788.0,0.02601617]
[1763118667850,0.52971501,96789.0,96788.0,0.01030617]
[1763118668054,0.32307996,96789.0,96788.0,0.01030617]
[1763118671102,0.52971501,96789.0,96788.0,0.01030617]
[1763118672645,0.52965213,96781.0,96780.0,0.02]
[1763118677071,0.52965213,96781.0,96777.0,0.01030617]
[1763118677072,0.52965853,96778.0,96777.0,0.01030617]
[1763118678440,0.52965853,96778.0,96777.0,0.01130617]
[1763118681289,0.52965853,96778.0,96777.0,0.001]
[1763118682179,0.53065853,96778.0,96777.0,0.001]
[1763118682382,0.52967348,96771.0,96770.0,0.02]
[1763118682586,0.6226194,96771.0,96770.0,0.02]
[1763118687340,0.52967775,96769.0,96768.0,0.01238]
[1763118690418,0.323,96769.0,96768.0,0.01238]
[1763118690634,0.323,96769.0,96768.0,0.21905989]
[1763118690867,0.323,96776.0,96773.0,0.20666791]
[1763118691079,0.20667562,96770.0,96769.0,0.02448]
[1763118691299,0.20667775,96769.0,96768.0,0.01238]
[1763118691725,0.19167775,96769.0,96768.0,0.02905]
[1763118692158,0.20667584,96770.0,96768.0,0.01238]
[1763118692364,0.20667388,96771.0,96768.0,0.01238]
[1763118692570,0.323,96772.0,96769.0,0.02448]
[1763118692990,0.20667562,96770.0,96769.0,0.02448]
[1763118693198,0.323,96772.0,96769.0,0.02448]
[1763118693425,0.323,96772.0,96771.0,0.20667348]
[1763118693634,0.323,96775.0,96772.0,0.20666945]
[1763118693835,0.323,96775.0,96773.0,0.20666894]
[1763118693970,0.323,96775.0,96774.0,0.02448]
[1763118694371,0.20663969,96787.0,96774.0,0.02448]
[1763118694601,0.01032951,96810.0,96774.0,0.02448]
[1763118694811,0.01032951,96810.0,96788.0,0.01667]
[1763118694812,0.20663133,96791.0,96788.0,0.01667]
[1763118695007,0.20671501,96789.0,96788.0,0.02697617]
[1763118695334,0.20671501,96789.0,96788.0,0.01030617]
[1763118695523,7.996e-05,96789.0,96788.0,0.01030617]
[1763118695716,0.20671501,96789.0,96788.0,0.01030617]
[1763118697238,0.20671501,96789.0,96788.0,0.01130617]
[1763118698397,0.20671501,96789.0,96788.0,0.03578617]
[1763118698686,0.20671501,96789.0,96788.0,0.01130617]
[1763118700481,0.20671501,96789.0,96788.0,0.01030617]
[1763118701539,0.20671501,96789.0,96778.0,0.01030617]